Workbook

Sheet Fiche_releve
A4: FREQUENCE DE RELEVE : 1 / 4 | F4: OPERATEUR : | H4: franck | J4: DATE : | K4: 23/06/2016
A5: Repère | B5: COTE / TOL. | G5: 1 ère pièce | H5: ième PCE | I5: ième PCE | J5: ième PCE | K5: ième PCE | L5: ième PCE | M5: ième PCE | N5: ième PCE | O5: ième PCE | P5: ième PCE | Q5: ième PCE
A6: 1 | B6: 2.5 | C6: +0,1 | G6: 3 | H6: 4 | J6: 5 | K6: 5
C7: -0,1
A8: 2 | B8: 21 | C8: +0,1 | G8: 5 | H8: 2 | K8: 12
C9: -0,1
A10: 3 | B10: 2 | C10: +0,1 | G10: 6 | H10: 6 | K10: 2
C11: -0,1
A12: 4 | B12: 30 | C12: +0,1 | G12: 9 | H12: 5
C13: -0,1
A14: 5 | B14: 13 | C14: +0,1 | G14: 4 | H14: 9
C15: -0,1
A16: 6 | B16: 2x Ø2,46 | C16: +0,05
C17: -0,03
A18: 7 | B18: Ø6,55 | C18: +0,05
C19: -0,05
A20: 8 | B20: Ø3,2 | C20: +0,1
C21: -0,1
A22: 9 | B22: Ø8 | C22: +0,1
C23: -0,1

Sheet Graphiques

Sheet Valeurs
C2: Repère 1 | G2: Valeurs relevées | K2: Repère 2 | O2: Valeurs relevées | S2: Repère 5 | W2: Valeurs relevées | Y2: N° Affaire | Z2: Date | AA2: Opérateur | AB2: N° pièce | AC2: Cote 1 | AD2: Cote 2 | AE2: Cote 3 | AF2: Cote 4 | AG2: Cote 5 | AH2: Cote 6 | AI2: Cote 7 | AJ2: Cote 8 | AK2: Cote 9
C3: IT- | D3: Cote nominale | E3: IT+ | K3: IT- | L3: Cote nominale | M3: IT+ | S3: IT- | T3: Cote nominale | U3: IT+ | Y3: =Fiche_releve!$E$3&"" ->  | Z3: =Fiche_releve!$K$4&"" -> 23/06/2016 | AA3: =Fiche_releve!$H$4&"" -> franck | AB3: =Fiche_releve!G5&"" -> 1 ère pièce | AC3: =Fiche_releve!G6&"" -> 3 | AD3: =Fiche_releve!G8&"" -> 5 | AE3: =Fiche_releve!G10&"" -> 6 | AF3: =Fiche_releve!G12&"" -> 9 | AG3: =Fiche_releve!G14&"" -> 4 | AH3: =Fiche_releve!G16&"" ->  | AI3: =Fiche_releve!G18&"" ->  | AJ3: =Fiche_releve!G20&"" ->  | AK3: =Fiche_releve!G22&"" -> 
A4: 1 | B4: 2.42 | C4: 2.4 | D4: 2.5 | E4: 2.6 | F4: 2.58 | G4: =IF(ISBLANK(Fiche_releve!G6),#N/A,Fiche_releve!G6) -> 3 | I4: 1 | J4: 20.92 | K4: =21-0.1 -> 20.9 | L4: 21 | M4: =21+0.1 -> 21.1 | N4: 21.08 | O4: =IF(ISBLANK(Fiche_releve!G8),#N/A,Fiche_releve!G8) -> 5 | Q4: 1 | R4: =S4+0.02 -> 12.92 | S4: =T4-0.1 -> 12.9 | T4: 13 | U4: =T4+0.1 -> 13.1 | V4: =U4-0.02 -> 13.08 | W4: =IF(ISBLANK(Fiche_releve!G14),#N/A,Fiche_releve!G14) -> 4 | Y4: =Fiche_releve!$E$3&"" ->  | Z4: =Fiche_releve!$K$4&"" -> 23/06/2016 | AA4: =Fiche_releve!$H$4&"" -> franck | AB4: =Fiche_releve!H5&"" -> ième PCE | AC4: =Fiche_releve!H6&"" -> 4 | AD4: =Fiche_releve!H8&"" -> 2 | AE4: =Fiche_releve!H10&"" -> 6 | AF4: =Fiche_releve!H12&"" -> 5 | AG4: =Fiche_releve!H14&"" -> 9 | AH4: =Fiche_releve!H16&"" ->  | AI4: =Fiche_releve!H18&"" ->  | AJ4: =Fiche_releve!H20&"" ->  | AK4: =Fiche_releve!H22&"" -> 
A5: 2 | B5: 2.42 | C5: 2.4 | D5: 2.5 | E5: 2.6 | F5: 2.58 | G5: =IF(ISBLANK(Fiche_releve!H6),#N/A,Fiche_releve!H6) -> 4 | I5: 2 | J5: 20.92 | K5: =21-0.1 -> 20.9 | L5: 21 | M5: =21+0.1 -> 21.1 | N5: 21.08 | O5: =IF(ISBLANK(Fiche_releve!H8),#N/A,Fiche_releve!H8) -> 2 | Q5: 2 | R5: =S5+0.02 -> 12.92 | S5: =T5-0.1 -> 12.9 | T5: 13 | U5: =T5+0.1 -> 13.1 | V5: =U5-0.02 -> 13.08 | W5: =IF(ISBLANK(Fiche_releve!H14),#N/A,Fiche_releve!H14) -> 9 | Y5: =Fiche_releve!$E$3&"" ->  | Z5: =Fiche_releve!$K$4&"" -> 23/06/2016 | AA5: =Fiche_releve!$H$4&"" -> franck | AB5: =Fiche_releve!I5&"" -> ième PCE | AC5: =Fiche_releve!I6&"" ->  | AD5: =Fiche_releve!I8&"" ->  | AE5: =Fiche_releve!I10&"" ->  | AF5: =Fiche_releve!I12&"" ->  | AG5: =Fiche_releve!I14&"" ->  | AH5: =Fiche_releve!I16&"" ->  | AI5: =Fiche_releve!I18&"" ->  | AJ5: =Fiche_releve!I20&"" ->  | AK5: =Fiche_releve!I22&"" -> 
A6: 3 | B6: 2.42 | C6: 2.4 | D6: 2.5 | E6: 2.6 | F6: 2.58 | G6: =IF(ISBLANK(Fiche_releve!I6),#N/A,Fiche_releve!I6) ->  | I6: 3 | J6: 20.92 | K6: 20.9 | L6: 21 | M6: 21.1 | N6: 21.08 | O6: =IF(ISBLANK(Fiche_releve!I8),#N/A,Fiche_releve!I8) ->  | Q6: 3 | R6: 12.92 | S6: 12.9 | T6: 13 | U6: 13.1 | V6: 13.08 | W6: =IF(ISBLANK(Fiche_releve!I14),#N/A,Fiche_releve!I14) ->  | Y6: =Fiche_releve!$E$3&"" ->  | Z6: =Fiche_releve!$K$4&"" -> 23/06/2016 | AA6: =Fiche_releve!$H$4&"" -> franck | AB6: =Fiche_releve!J5&"" -> ième PCE | AC6: =Fiche_releve!J6&"" -> 5 | AD6: =Fiche_releve!J8&"" ->  | AE6: =Fiche_releve!J10&"" ->  | AF6: =Fiche_releve!J12&"" ->  | AG6: =Fiche_releve!J14&"" ->  | AH6: =Fiche_releve!J16&"" ->  | AI6: =Fiche_releve!J18&"" ->  | AJ6: =Fiche_releve!J20&"" ->  | AK6: =Fiche_releve!J22&"" -> 
A7: 4 | B7: 2.42 | C7: 2.4 | D7: 2.5 | E7: 2.6 | F7: 2.58 | G7: =IF(ISBLANK(Fiche_releve!J6),#N/A,Fiche_releve!J6) -> 5 | I7: 4 | J7: 20.92 | K7: 20.9 | L7: 21 | M7: 21.1 | N7: 21.08 | O7: =IF(ISBLANK(Fiche_releve!J8),#N/A,Fiche_releve!J8) ->  | Q7: 4 | R7: 12.92 | S7: 12.9 | T7: 13 | U7: 13.1 | V7: 13.08 | W7: =IF(ISBLANK(Fiche_releve!J14),#N/A,Fiche_releve!J14) ->  | Y7: =Fiche_releve!$E$3&"" ->  | Z7: =Fiche_releve!$K$4&"" -> 23/06/2016 | AA7: =Fiche_releve!$H$4&"" -> franck | AB7: =Fiche_releve!K5&"" -> ième PCE | AC7: =Fiche_releve!K6&"" -> 5 | AD7: =Fiche_releve!K8&"" -> 12 | AE7: =Fiche_releve!K10&"" -> 2 | AF7: =Fiche_releve!K12&"" ->  | AG7: =Fiche_releve!K14&"" ->  | AH7: =Fiche_releve!K16&"" ->  | AI7: =Fiche_releve!K18&"" ->  | AJ7: =Fiche_releve!K20&"" ->  | AK7: =Fiche_releve!K22&"" -> 
A8: 5 | B8: 2.42 | C8: 2.4 | D8: 2.5 | E8: 2.6 | F8: 2.58 | G8: =IF(ISBLANK(Fiche_releve!K6),#N/A,Fiche_releve!K6) -> 5 | I8: 5 | J8: 20.92 | K8: 20.9 | L8: 21 | M8: 21.1 | N8: 21.08 | O8: =IF(ISBLANK(Fiche_releve!K8),#N/A,Fiche_releve!K8) -> 12 | Q8: 5 | R8: 12.92 | S8: 12.9 | T8: 13 | U8: 13.1 | V8: 13.08 | W8: =IF(ISBLANK(Fiche_releve!K14),#N/A,Fiche_releve!K14) ->  | Y8: =Fiche_releve!$E$3&"" ->  | Z8: =Fiche_releve!$K$4&"" -> 23/06/2016 | AA8: =Fiche_releve!$H$4&"" -> franck | AB8: =Fiche_releve!L5&"" -> ième PCE | AC8: =Fiche_releve!L6&"" ->  | AD8: =Fiche_releve!L8&"" ->  | AE8: =Fiche_releve!L10&"" ->  | AF8: =Fiche_releve!L12&"" ->  | AG8: =Fiche_releve!L14&"" ->  | AH8: =Fiche_releve!L16&"" ->  | AI8: =Fiche_releve!L18&"" ->  | AJ8: =Fiche_releve!L20&"" ->  | AK8: =Fiche_releve!L22&"" -> 
A9: 6 | B9: 2.42 | C9: 2.4 | D9: 2.5 | E9: 2.6 | F9: 2.58 | G9: =IF(ISBLANK(Fiche_releve!L6),#N/A,Fiche_releve!L6) ->  | I9: 6 | J9: 20.92 | K9: 20.9 | L9: 21 | M9: 21.1 | N9: 21.08 | O9: =IF(ISBLANK(Fiche_releve!L8),#N/A,Fiche_releve!L8) ->  | Q9: 6 | R9: 12.92 | S9: 12.9 | T9: 13 | U9: 13.1 | V9: 13.08 | W9: =IF(ISBLANK(Fiche_releve!L14),#N/A,Fiche_releve!L14) ->  | Y9: =Fiche_releve!$E$3&"" ->  | Z9: =Fiche_releve!$K$4&"" -> 23/06/2016 | AA9: =Fiche_releve!$H$4&"" -> franck | AB9: =Fiche_releve!M5&"" -> ième PCE | AC9: =Fiche_releve!M6&"" ->  | AD9: =Fiche_releve!M8&"" ->  | AE9: =Fiche_releve!M10&"" ->  | AF9: =Fiche_releve!M12&"" ->  | AG9: =Fiche_releve!M14&"" ->  | AH9: =Fiche_releve!M16&"" ->  | AI9: =Fiche_releve!M18&"" ->  | AJ9: =Fiche_releve!M20&"" ->  | AK9: =Fiche_releve!M22&"" -> 
A10: 7 | B10: 2.42 | C10: 2.4 | D10: 2.5 | E10: 2.6 | F10: 2.58 | G10: =IF(ISBLANK(Fiche_releve!M6),#N/A,Fiche_releve!M6) ->  | I10: 7 | J10: 20.92 | K10: 20.9 | L10: 21 | M10: 21.1 | N10: 21.08 | O10: =IF(ISBLANK(Fiche_releve!M8),#N/A,Fiche_releve!M8) ->  | Q10: 7 | R10: 12.92 | S10: 12.9 | T10: 13 | U10: 13.1 | V10: 13.08 | W10: =IF(ISBLANK(Fiche_releve!M14),#N/A,Fiche_releve!M14) ->  | Y10: =Fiche_releve!$E$3&"" ->  | Z10: =Fiche_releve!$K$4&"" -> 23/06/2016 | AA10: =Fiche_releve!$H$4&"" -> franck | AB10: =Fiche_releve!N5&"" -> ième PCE | AC10: =Fiche_releve!N6&"" ->  | AD10: =Fiche_releve!N8&"" ->  | AE10: =Fiche_releve!N10&"" ->  | AF10: =Fiche_releve!N12&"" ->  | AG10: =Fiche_releve!N14&"" ->  | AH10: =Fiche_releve!N16&"" ->  | AI10: =Fiche_releve!N18&"" ->  | AJ10: =Fiche_releve!N20&"" ->  | AK10: =Fiche_releve!N22&"" -> 
A11: 8 | B11: 2.42 | C11: 2.4 | D11: 2.5 | E11: 2.6 | F11: 2.58 | G11: =IF(ISBLANK(Fiche_releve!N6),#N/A,Fiche_releve!N6) ->  | I11: 8 | J11: 20.92 | K11: 20.9 | L11: 21 | M11: 21.1 | N11: 21.08 | O11: =IF(ISBLANK(Fiche_releve!N8),#N/A,Fiche_releve!N8) ->  | Q11: 8 | R11: 12.92 | S11: 12.9 | T11: 13 | U11: 13.1 | V11: 13.08 | W11: =IF(ISBLANK(Fiche_releve!N14),#N/A,Fiche_releve!N14) ->  | Y11: =Fiche_releve!$E$3&"" ->  | Z11: =Fiche_releve!$K$4&"" -> 23/06/2016 | AA11: =Fiche_releve!$H$4&"" -> franck | AB11: =Fiche_releve!O5&"" -> ième PCE | AC11: =Fiche_releve!O6&"" ->  | AD11: =Fiche_releve!O8&"" ->  | AE11: =Fiche_releve!O10&"" ->  | AF11: =Fiche_releve!O12&"" ->  | AG11: =Fiche_releve!O14&"" ->  | AH11: =Fiche_releve!O16&"" ->  | AI11: =Fiche_releve!O18&"" ->  | AJ11: =Fiche_releve!O20&"" ->  | AK11: =Fiche_releve!O22&"" -> 
A12: 9 | B12: 2.42 | C12: 2.4 | D12: 2.5 | E12: 2.6 | F12: 2.58 | G12: =IF(ISBLANK(Fiche_releve!O6),#N/A,Fiche_releve!O6) ->  | I12: 9 | J12: 20.92 | K12: 20.9 | L12: 21 | M12: 21.1 | N12: 21.08 | O12: =IF(ISBLANK(Fiche_releve!O8),#N/A,Fiche_releve!O8) ->  | Q12: 9 | R12: 12.92 | S12: 12.9 | T12: 13 | U12: 13.1 | V12: 13.08 | W12: =IF(ISBLANK(Fiche_releve!O14),#N/A,Fiche_releve!O14) ->  | Y12: =Fiche_releve!$E$3&"" ->  | Z12: =Fiche_releve!$K$4&"" -> 23/06/2016 | AA12: =Fiche_releve!$H$4&"" -> franck | AB12: =Fiche_releve!P5&"" -> ième PCE | AC12: =Fiche_releve!P6&"" ->  | AD12: =Fiche_releve!P8&"" ->  | AE12: =Fiche_releve!P10&"" ->  | AF12: =Fiche_releve!P12&"" ->  | AG12: =Fiche_releve!P14&"" ->  | AH12: =Fiche_releve!P16&"" ->  | AI12: =Fiche_releve!P18&"" ->  | AJ12: =Fiche_releve!P20&"" ->  | AK12: =Fiche_releve!P22&"" -> 
A13: 10 | B13: 2.42 | C13: 2.4 | D13: 2.5 | E13: 2.6 | F13: 2.58 | G13: =IF(ISBLANK(Fiche_releve!P6),#N/A,Fiche_releve!P6) ->  | I13: 10 | J13: 20.92 | K13: 20.9 | L13: 21 | M13: 21.1 | N13: 21.08 | O13: =IF(ISBLANK(Fiche_releve!P8),#N/A,Fiche_releve!P8) ->  | Q13: 10 | R13: 12.92 | S13: 12.9 | T13: 13 | U13: 13.1 | V13: 13.08 | W13: =IF(ISBLANK(Fiche_releve!P14),#N/A,Fiche_releve!P14) ->  | Y13: =Fiche_releve!$E$3&"" ->  | Z13: =Fiche_releve!$K$4&"" -> 23/06/2016 | AA13: =Fiche_releve!$H$4&"" -> franck | AB13: =Fiche_releve!Q5&"" -> ième PCE | AC13: =Fiche_releve!Q6&"" ->  | AD13: =Fiche_releve!Q8&"" ->  | AE13: =Fiche_releve!Q10&"" ->  | AF13: =Fiche_releve!Q12&"" ->  | AG13: =Fiche_releve!Q14&"" ->  | AH13: =Fiche_releve!Q16&"" ->  | AI13: =Fiche_releve!Q18&"" ->  | AJ13: =Fiche_releve!Q20&"" ->  | AK13: =Fiche_releve!Q22&"" -> 
A14: 11 | B14: 2.42 | C14: 2.4 | D14: 2.5 | E14: 2.6 | F14: 2.58 | G14: =IF(ISBLANK(Fiche_releve!Q6),#N/A,Fiche_releve!Q6) ->  | I14: 11 | J14: 20.92 | K14: 20.9 | L14: 21 | M14: 21.1 | N14: 21.08 | O14: =IF(ISBLANK(Fiche_releve!Q8),#N/A,Fiche_releve!Q8) ->  | Q14: 11 | R14: 12.92 | S14: 12.9 | T14: 13 | U14: 13.1 | V14: 13.08 | W14: =IF(ISBLANK(Fiche_releve!Q14),#N/A,Fiche_releve!Q14) -> 
C17: Repère 3 | G17: Valeurs relevées | K17: Repère 4 | O17: Valeurs relevées
C18: IT- | D18: Cote nominale | E18: IT+ | K18: IT- | L18: Cote nominale | M18: IT+
A19: 1 | B19: 1.92 | C19: =2-0.1 -> 1.9 | D19: 2 | E19: =2+0.1 -> 2.1 | F19: 2.08 | G19: =IF(ISBLANK(Fiche_releve!G10),#N/A,Fiche_releve!G10) -> 6 | I19: 1 | J19: =K19+0.02 -> 29.92 | K19: =L19-0.1 -> 29.9 | L19: 30 | M19: =L19+0.1 -> 30.1 | N19: =M19-0.02 -> 30.08 | O19: =IF(ISBLANK(Fiche_releve!G12),#N/A,Fiche_releve!G12) -> 9
A20: 2 | B20: 1.92 | C20: =2-0.1 -> 1.9 | D20: 2 | E20: =2+0.1 -> 2.1 | F20: 2.08 | G20: =IF(ISBLANK(Fiche_releve!H10),#N/A,Fiche_releve!H10) -> 6 | I20: 2 | J20: =K20+0.02 -> 29.92 | K20: =L20-0.1 -> 29.9 | L20: 30 | M20: =L20+0.1 -> 30.1 | N20: =M20-0.02 -> 30.08 | O20: =IF(ISBLANK(Fiche_releve!H12),#N/A,Fiche_releve!H12) -> 5
A21: 3 | B21: 1.92 | C21: 1.9 | D21: 2 | E21: 2.1 | F21: 2.08 | G21: =IF(ISBLANK(Fiche_releve!I10),#N/A,Fiche_releve!I10) ->  | I21: 3 | J21: 29.92 | K21: 29.9 | L21: 30 | M21: 30.1 | N21: 30.08 | O21: =IF(ISBLANK(Fiche_releve!I12),#N/A,Fiche_releve!I12) -> 
A22: 4 | B22: 1.92 | C22: 1.9 | D22: 2 | E22: 2.1 | F22: 2.08 | G22: =IF(ISBLANK(Fiche_releve!J10),#N/A,Fiche_releve!J10) ->  | I22: 4 | J22: 29.92 | K22: 29.9 | L22: 30 | M22: 30.1 | N22: 30.08 | O22: =IF(ISBLANK(Fiche_releve!J12),#N/A,Fiche_releve!J12) -> 
A23: 5 | B23: 1.92 | C23: 1.9 | D23: 2 | E23: 2.1 | F23: 2.08 | G23: =IF(ISBLANK(Fiche_releve!K10),#N/A,Fiche_releve!K10) -> 2 | I23: 5 | J23: 29.92 | K23: 29.9 | L23: 30 | M23: 30.1 | N23: 30.08 | O23: =IF(ISBLANK(Fiche_releve!K12),#N/A,Fiche_releve!K12) -> 
A24: 6 | B24: 1.92 | C24: 1.9 | D24: 2 | E24: 2.1 | F24: 2.08 | G24: =IF(ISBLANK(Fiche_releve!L10),#N/A,Fiche_releve!L10) ->  | I24: 6 | J24: 29.92 | K24: 29.9 | L24: 30 | M24: 30.1 | N24: 30.08 | O24: =IF(ISBLANK(Fiche_releve!L12),#N/A,Fiche_releve!L12) -> 
A25: 7 | B25: 1.92 | C25: 1.9 | D25: 2 | E25: 2.1 | F25: 2.08 | G25: =IF(ISBLANK(Fiche_releve!M10),#N/A,Fiche_releve!M10) ->  | I25: 7 | J25: 29.92 | K25: 29.9 | L25: 30 | M25: 30.1 | N25: 30.08 | O25: =IF(ISBLANK(Fiche_releve!M12),#N/A,Fiche_releve!M12) -> 
A26: 8 | B26: 1.92 | C26: 1.9 | D26: 2 | E26: 2.1 | F26: 2.08 | G26: =IF(ISBLANK(Fiche_releve!N10),#N/A,Fiche_releve!N10) ->  | I26: 8 | J26: 29.92 | K26: 29.9 | L26: 30 | M26: 30.1 | N26: 30.08 | O26: =IF(ISBLANK(Fiche_releve!N12),#N/A,Fiche_releve!N12) -> 
A27: 9 | B27: 1.92 | C27: 1.9 | D27: 2 | E27: 2.1 | F27: 2.08 | G27: =IF(ISBLANK(Fiche_releve!O10),#N/A,Fiche_releve!O10) ->  | I27: 9 | J27: 29.92 | K27: 29.9 | L27: 30 | M27: 30.1 | N27: 30.08 | O27: =IF(ISBLANK(Fiche_releve!O12),#N/A,Fiche_releve!O12) -> 
A28: 10 | B28: 1.92 | C28: 1.9 | D28: 2 | E28: 2.1 | F28: 2.08 | G28: =IF(ISBLANK(Fiche_releve!P10),#N/A,Fiche_releve!P10) ->  | I28: 10 | J28: 29.92 | K28: 29.9 | L28: 30 | M28: 30.1 | N28: 30.08 | O28: =IF(ISBLANK(Fiche_releve!P12),#N/A,Fiche_releve!P12) -> 
A29: 11 | B29: 1.92 | C29: 1.9 | D29: 2 | E29: 2.1 | F29: 2.08 | G29: =IF(ISBLANK(Fiche_releve!Q10),#N/A,Fiche_releve!Q10) ->  | I29: 11 | J29: 29.92 | K29: 29.9 | L29: 30 | M29: 30.1 | N29: 30.08 | O29: =IF(ISBLANK(Fiche_releve!Q13),#N/A,Fiche_releve!Q13) -> 

Sheet BDD
A1: N° Affaire | B1: Date | C1: Opérateur | D1: N° pièce | E1: Cote 1 | F1: Cote 2 | G1: Cote 3 | H1: Cote 4 | I1: Cote 5 | J1: Cote 6 | K1: Cote 7 | L1: Cote 8 | M1: Cote 9
A2: 12 | B2: 23/06/2016 | C2: franck | D2: 1 ère pièce | E2: 3 | F2: 5 | G2: 6 | H2: 9 | I2: 4
A3: 12 | B3: 23/06/2016 | C3: franck | D3: ième PCE | E3: 4 | F3: 2 | G3: 6 | H3: 5 | I3: 9 | Y3: =Fiche_releve!$E$3&"" -> 
A4: 12 | B4: 23/06/2016 | C4: franck | D4: ième PCE
A5: 12 | B5: 23/06/2016 | C5: franck | D5: ième PCE | E5: 5
A6: 12 | B6: 23/06/2016 | C6: franck | D6: ième PCE | E6: 5 | F6: 12 | G6: 2
A7: 12 | B7: 23/06/2016 | C7: franck | D7: ième PCE
A8: 12 | B8: 23/06/2016 | C8: franck | D8: ième PCE
A9: 12 | B9: 23/06/2016 | C9: franck | D9: ième PCE
A10: 12 | B10: 23/06/2016 | C10: franck | D10: ième PCE
A11: 12 | B11: 23/06/2016 | C11: franck | D11: ième PCE
A12: 12 | B12: 23/06/2016 | C12: franck | D12: ième PCE
